Workbook

Sheet वित्तीय रिपोर्ट
B2: वार्षिक वित्तीय रिपोर्ट | K2: 2016 | N2: कक्ष L2 में रिपोर्ट वर्ष चुनें
B3: आपकी कंपनी का नाम | N3: डेटा संपादित करने के लिए, वित्तीय डेटा इनपुट पत्रक चुनें
B5: मुख्य मैट्रिक्स | D5: रिपोर्ट कुंजी मैट्रिक्स बदलने के लिए क्लिक करें
B7: =परिकलन!B8 -> आय | D7: =परिकलन!B9 -> शुद्ध लाभ | F7: =परिकलन!B10 -> ब्याज | H7: =परिकलन!B11 -> मूल्यह्रास | J7: =परिकलन!B12 -> परिचालन लाभ
B8: =IFERROR(परिकलन!G8,"") -> ₹ 18,058,388 | D8: =IFERROR(परिकलन!G9,"") -> ₹ 6,747,485 | F8: =IFERROR(परिकलन!G10,"") -> ₹ 378,947 | H8: =IFERROR(परिकलन!G11,"") -> ₹ 554,688 | J8: =IFERROR(परिकलन!G12,"") -> ₹ 7,342,599
B9: =परिकलन!H8 -> 0% | D9: =परिकलन!H9 -> 2% | F9: =परिकलन!H10 -> 14% | H9: =परिकलन!H11 -> 9% | J9: =परिकलन!H12 -> -5%
B13: सभी मैट्रिक्स | D13: नीचे दी गई जानकारी संशोधित न करें. वित्तीय डेटा दर्ज करने के लिए क्लिक करें
B15: मैट्रिक | D15: ="रिपोर्ट वर्ष ("&SelectedYear&")" -> रिपोर्ट वर्ष (2016) | F15: ="पिछला वर्ष ("&SelectedYear-1&")" -> पिछला वर्ष (2015) | H15: % परिवर्तन | I15: =CONCATENATE(वर्ष," वर्ष के रुझान") -> 5 वर्ष के रुझान
B16: =परिकलन!B15 -> आय | D16: =IF($B16="","",परिकलन!G15) -> ₹ 18,058,388.00 | F16: =IF($B16="","",परिकलन!F15) -> ₹ 18,002,663.00 | H16: =IFERROR(D16/F16-1,"") -> 0%
B17: =परिकलन!B16 -> परिचालन व्यय | D17: =IF($B17="","",परिकलन!G16) -> ₹ 9,441,945.00 | F17: =IF($B17="","",परिकलन!F16) -> ₹ 8,088,333.00 | H17: 17%
B18: =परिकलन!B17 -> परिचालन लाभ | D18: =IF($B18="","",परिकलन!G17) -> ₹ 7,342,599.00 | F18: =IF($B18="","",परिकलन!F17) -> ₹ 7,731,783.00 | H18: -5%
B19: =परिकलन!B18 -> मूल्यह्रास | D19: =IF($B19="","",परिकलन!G18) -> ₹ 554,688.00 | F19: =IF($B19="","",परिकलन!F18) -> ₹ 506,842.00 | H19: 9%
B20: =परिकलन!B19 -> ब्याज | D20: =IF($B20="","",परिकलन!G19) -> ₹ 378,947.00 | F20: =IF($B20="","",परिकलन!F19) -> ₹ 333,830.00 | H20: 14%
B21: =परिकलन!B20 -> शुद्ध लाभ | D21: =IF($B21="","",परिकलन!G20) -> ₹ 6,747,485.00 | F21: =IF($B21="","",परिकलन!F20) -> ₹ 6,627,210.00 | H21: 2%
B22: =परिकलन!B21 -> कर | D22: =IF($B22="","",परिकलन!G21) -> ₹ 3,140,825.00 | F22: =IF($B22="","",परिकलन!F21) -> ₹ 2,942,453.00 | H22: 7%
B23: =परिकलन!B22 -> कर के बाद लाभ | D23: =IF($B23="","",परिकलन!G22) -> ₹ 5,024,768.00 | F23: =IF($B23="","",परिकलन!F22) -> ₹ 4,243,820.00 | H23: 18%
B24: =परिकलन!B23 -> मैट्रिक 1 | D24: =IF($B24="","",परिकलन!G23) -> ₹ 1,996.00 | F24: =IF($B24="","",परिकलन!F23) -> ₹ 1,678.00 | H24: 19%
B25: =परिकलन!B24 -> मैट्रिक 2 | D25: =IF($B25="","",परिकलन!G24) -> ₹ 2,601.00 | F25: =IF($B25="","",परिकलन!F24) -> ₹ 2,184.00 | H25: 19%
B26: =परिकलन!B25 -> मैट्रिक 3 | D26: =IF($B26="","",परिकलन!G25) -> ₹ 3,108.00 | F26: =IF($B26="","",परिकलन!F25) -> ₹ 2,639.00 | H26: 18%
B27: =परिकलन!B26 -> मैट्रिक 4 | D27: =IF($B27="","",परिकलन!G26) -> ₹ 1,492.00 | F27: =IF($B27="","",परिकलन!F26) -> ₹ 1,459.00 | H27: 2%
B28: =परिकलन!B27 -> मैट्रिक 5 | D28: =IF($B28="","",परिकलन!G27) -> ₹ 103.00 | F28: =IF($B28="","",परिकलन!F27) -> ₹ 100.00 | H28: 3%
B29: =परिकलन!B28 -> मैट्रिक 6 | D29: =IF($B29="","",परिकलन!G28) -> ₹ 34.00 | F29: =IF($B29="","",परिकलन!F28) -> ₹ 30.00 | H29: 13%
B30: =परिकलन!B29 ->  | D30: =IF($B30="","",परिकलन!G29) ->  | F30: =IF($B30="","",परिकलन!F29) -> 
B31: =परिकलन!B30 ->  | D31: =IF($B31="","",परिकलन!G30) ->  | F31: =IF($B31="","",परिकलन!F30) -> 
B32: =परिकलन!B31 ->  | D32: =IF($B32="","",परिकलन!G31) ->  | F32: =IF($B32="","",परिकलन!F31) -> 
B33: =परिकलन!B32 ->  | D33: =IF($B33="","",परिकलन!G32) ->  | F33: =IF($B33="","",परिकलन!F32) -> 
B34: =परिकलन!B33 ->  | D34: =IF($B34="","",परिकलन!G33) ->  | F34: =IF($B34="","",परिकलन!F33) -> 
B35: =परिकलन!B34 ->  | D35: =IF($B35="","",परिकलन!G34) ->  | F35: =IF($B35="","",परिकलन!F34) -> 
B36: =परिकलन!B35 ->  | D36: =IF($B36="","",परिकलन!G35) ->  | F36: =IF($B36="","",परिकलन!F35) -> 
B37: =परिकलन!B36 ->  | D37: =IF($B37="","",परिकलन!G36) ->  | F37: =IF($B37="","",परिकलन!F36) -> 
B38: =परिकलन!B37 ->  | D38: =IF($B38="","",परिकलन!G37) ->  | F38: =IF($B38="","",परिकलन!F37) -> 
B39: =परिकलन!B38 ->  | D39: =IF($B39="","",परिकलन!G38) ->  | F39: =IF($B39="","",परिकलन!F38) -> 
B40: =परिकलन!B39 ->  | D40: =IF($B40="","",परिकलन!G39) ->  | F40: =IF($B40="","",परिकलन!F39) -> 

Sheet वित्तीय डेटा इनपुट
B2: अपना वित्तीय डेटा इनपुट करें
B3: आप 7 वर्षों के लिए 25 मुख्य मैट्रिक्स परिभाषित कर सकते हैं
B4: वित्तीय रिपोर्ट देखने के लिए क्लिक करें
B5: मैट्रिक नाम | C5: 2010 | D5: 2011 | E5: 2012 | F5: 2013 | G5: 2014 | H5: 2015 | I5: 2016
B6: आय | C6: ₹ 12,500,000.00 | D6: ₹ 13,413,745.00 | E6: ₹ 14,272,838.00 | F6: ₹ 15,068,746.00 | G6: ₹ 16,504,456.00 | H6: ₹ 18,002,663.00 | I6: ₹ 18,058,388.00
B7: परिचालन व्यय | C7: ₹ 6,500,000.00 | D7: ₹ 7,096,231.00 | E7: ₹ 7,592,486.00 | F7: ₹ 7,890,127.00 | G7: ₹ 8,167,437.00 | H7: ₹ 8,088,333.00 | I7: ₹ 9,441,945.00
B8: परिचालन लाभ | C8: ₹ 6,000,000.00 | D8: ₹ 6,420,730.00 | E8: ₹ 6,885,769.00 | F8: ₹ 7,564,325.00 | G8: ₹ 7,675,526.00 | H8: ₹ 7,731,783.00 | I8: ₹ 7,342,599.00
B9: मूल्यह्रास | C9: ₹ 450,000.00 | D9: ₹ 451,777.00 | E9: ₹ 465,692.00 | F9: ₹ 497,421.00 | G9: ₹ 502,411.00 | H9: ₹ 506,842.00 | I9: ₹ 554,688.00
B10: ब्याज | C10: ₹ 250,000.00 | D10: ₹ 274,582.00 | E10: ₹ 289,311.00 | F10: ₹ 313,612.00 | G10: ₹ 314,853.00 | H10: ₹ 333,830.00 | I10: ₹ 378,947.00
B11: शुद्ध लाभ | C11: ₹ 5,400,000.00 | D11: ₹ 5,476,107.50 | E11: ₹ 5,586,081.00 | F11: ₹ 5,974,795.00 | G11: ₹ 6,148,359.00 | H11: ₹ 6,627,210.00 | I11: ₹ 6,747,485.00
B12: कर | C12: ₹ 2,200,000.00 | D12: ₹ 2,392,054.00 | E12: ₹ 2,557,674.00 | F12: ₹ 2,749,886.00 | G12: ₹ 2,833,567.00 | H12: ₹ 2,942,453.00 | I12: ₹ 3,140,825.00
B13: कर के बाद लाभ | C13: ₹ 3,200,000.00 | D13: ₹ 3,494,349.00 | E13: ₹ 3,841,853.00 | F13: ₹ 3,989,505.00 | G13: ₹ 4,060,773.00 | H13: ₹ 4,243,820.00 | I13: ₹ 5,024,768.00
B14: मैट्रिक 1 | C14: ₹ 1,280.00 | D14: ₹ 1,281.00 | E14: ₹ 1,378.00 | F14: ₹ 1,429.00 | G14: ₹ 1,557.00 | H14: ₹ 1,678.00 | I14: ₹ 1,996.00
B15: मैट्रिक 2 | C15: ₹ 1,820.00 | D15: ₹ 1,859.00 | E15: ₹ 1,922.00 | F15: ₹ 2,017.00 | G15: ₹ 2,048.00 | H15: ₹ 2,184.00 | I15: ₹ 2,601.00
B16: मैट्रिक 3 | C16: ₹ 1,910.00 | D16: ₹ 2,055.00 | E16: ₹ 2,187.00 | F16: ₹ 2,319.00 | G16: ₹ 2,467.00 | H16: ₹ 2,639.00 | I16: ₹ 3,108.00
B17: मैट्रिक 4 | C17: ₹ 1,210.00 | D17: ₹ 1,221.00 | E17: ₹ 1,259.00 | F17: ₹ 1,370.00 | G17: ₹ 1,376.00 | H17: ₹ 1,459.00 | I17: ₹ 1,492.00
B18: मैट्रिक 5 | C18: ₹ 75.00 | D18: ₹ 79.00 | E18: ₹ 85.00 | F18: ₹ 89.00 | G18: ₹ 91.00 | H18: ₹ 100.00 | I18: ₹ 103.00
B19: मैट्रिक 6 | C19: ₹ 23.00 | D19: ₹ 25.00 | E19: ₹ 27.00 | F19: ₹ 28.00 | G19: ₹ 29.00 | H19: ₹ 30.00 | I19: ₹ 34.00

Sheet मुख्य मैट्रिक सेटिंग्स
B2: यहाँ मुख्य मैट्रिक्स परिभाषित करें
B3: रिपोर्ट के शीर्ष पर दिखाने के लिए अधिकतम 5 मुख्य मैट्रिक्स चुनें
B4: वित्तीय रिपोर्ट देखने के लिए क्लिक करें
B5: 1 | C5: आय | E5: =IF(ISBLANK(C5),"← कृपया ड्रॉप-डाउन से कोई मान चुनें",IF(COUNTIF($C$5:C5,C5)>1,"आपने "&C5&" को एक से अधिक बार चुना है.","")) -> 
B6: 2 | C6: शुद्ध लाभ | E6: =IF(ISBLANK(C6),"← कृपया ड्रॉप-डाउन से कोई मान चुनें",IF(COUNTIF($C$5:C6,C6)>1,"आपने "&C6&" को एक से अधिक बार चुना है.","")) -> 
B7: 3 | C7: ब्याज | E7: =IF(ISBLANK(C7),"← कृपया ड्रॉप-डाउन से कोई मान चुनें",IF(COUNTIF($C$5:C7,C7)>1,"आपने "&C7&" को एक से अधिक बार चुना है.","")) -> 
B8: 4 | C8: मूल्यह्रास | E8: =IF(ISBLANK(C8),"← कृपया ड्रॉप-डाउन से कोई मान चुनें",IF(COUNTIF($C$5:C8,C8)>1,"आपने "&C8&" को एक से अधिक बार चुना है.","")) -> 
B9: 5 | C9: परिचालन लाभ | E9: =IF(ISBLANK(C9),"← कृपया ड्रॉप-डाउन से कोई मान चुनें",IF(COUNTIF($C$5:C9,C9)>1,"आपने "&C9&" को एक से अधिक बार चुना है.","")) -> 

Sheet परिकलन (hidden)
A1: यह कार्यपत्रक वित्तीय रिपोर्ट परिकलनों के लिए उपयोग किया जाता है और छुपा हुआ रहना चाहिए.
D2: स्थिति
B3: इस वर्ष | C3: =SelectedYear -> 2016 | D3: =MATCH(C3,lstYears,0)+1 -> 8
B4: पिछला वर्ष | C4: =C3-1 -> 2015 | D4: =MATCH(C4,lstYears,0)+1 -> 7
B6: स्थिति | C6: =MATCH(C7,lstYears,0)+1 -> 4 | D6: =MATCH(D7,lstYears,0)+1 -> 5 | E6: =MATCH(E7,lstYears,0)+1 -> 6 | F6: =MATCH(F7,lstYears,0)+1 -> 7 | G6: =MATCH(G7,lstYears,0)+1 -> 8 | I6: =COUNT(C6:G6) -> 5
B7: मुख्य मैट्रिक्स | C7: =D7-1 -> 2012 | D7: =E7-1 -> 2013 | E7: =F7-1 -> 2014 | F7: =G7-1 -> 2015 | G7: =C3 -> 2016
A8: =MATCH(B8,'वित्तीय डेटा इनपुट'!$B$6:$B$30,0) -> 1 | B8: =IF('मुख्य मैट्रिक सेटिंग्स'!C5="","",'मुख्य मैट्रिक सेटिंग्स'!C5) -> आय | C8: =IFERROR(INDEX('वित्तीय डेटा इनपुट'!$B$6:$I$30,$A8,C$6),NA()) -> 14272838 | D8: =IFERROR(INDEX('वित्तीय डेटा इनपुट'!$B$6:$I$30,$A8,D$6),NA()) -> 15068746 | E8: =IFERROR(INDEX('वित्तीय डेटा इनपुट'!$B$6:$I$30,$A8,E$6),NA()) -> 16504456 | F8: =IFERROR(INDEX('वित्तीय डेटा इनपुट'!$B$6:$I$30,$A8,F$6),NA()) -> 18002663 | G8: =IFERROR(INDEX('वित्तीय डेटा इनपुट'!$B$6:$I$30,$A8,G$6),NA()) -> 18058388 | H8: =IFERROR(G8/F8-1,"") -> 0%
A9: =MATCH(B9,'वित्तीय डेटा इनपुट'!$B$6:$B$30,0) -> 6 | B9: =IF('मुख्य मैट्रिक सेटिंग्स'!C6="","",'मुख्य मैट्रिक सेटिंग्स'!C6) -> शुद्ध लाभ | C9: =IFERROR(INDEX('वित्तीय डेटा इनपुट'!$B$6:$I$30,$A9,C$6),NA()) -> 5586081 | D9: =IFERROR(INDEX('वित्तीय डेटा इनपुट'!$B$6:$I$30,$A9,D$6),NA()) -> 5974795 | E9: =IFERROR(INDEX('वित्तीय डेटा इनपुट'!$B$6:$I$30,$A9,E$6),NA()) -> 6148359 | F9: =IFERROR(INDEX('वित्तीय डेटा इनपुट'!$B$6:$I$30,$A9,F$6),NA()) -> 6627210 | G9: =IFERROR(INDEX('वित्तीय डेटा इनपुट'!$B$6:$I$30,$A9,G$6),NA()) -> 6747485 | H9: =IFERROR(G9/F9-1,"") -> 2%
A10: =MATCH(B10,'वित्तीय डेटा इनपुट'!$B$6:$B$30,0) -> 5 | B10: =IF('मुख्य मैट्रिक सेटिंग्स'!C7="","",'मुख्य मैट्रिक सेटिंग्स'!C7) -> ब्याज | C10: =IFERROR(INDEX('वित्तीय डेटा इनपुट'!$B$6:$I$30,$A10,C$6),NA()) -> 289311 | D10: =IFERROR(INDEX('वित्तीय डेटा इनपुट'!$B$6:$I$30,$A10,D$6),NA()) -> 313612 | E10: =IFERROR(INDEX('वित्तीय डेटा इनपुट'!$B$6:$I$30,$A10,E$6),NA()) -> 314853 | F10: =IFERROR(INDEX('वित्तीय डेटा इनपुट'!$B$6:$I$30,$A10,F$6),NA()) -> 333830 | G10: =IFERROR(INDEX('वित्तीय डेटा इनपुट'!$B$6:$I$30,$A10,G$6),NA()) -> 378947 | H10: 14%
A11: =MATCH(B11,'वित्तीय डेटा इनपुट'!$B$6:$B$30,0) -> 4 | B11: =IF('मुख्य मैट्रिक सेटिंग्स'!C8="","",'मुख्य मैट्रिक सेटिंग्स'!C8) -> मूल्यह्रास | C11: =IFERROR(INDEX('वित्तीय डेटा इनपुट'!$B$6:$I$30,$A11,C$6),NA()) -> 465692 | D11: =IFERROR(INDEX('वित्तीय डेटा इनपुट'!$B$6:$I$30,$A11,D$6),NA()) -> 497421 | E11: =IFERROR(INDEX('वित्तीय डेटा इनपुट'!$B$6:$I$30,$A11,E$6),NA()) -> 502411 | F11: =IFERROR(INDEX('वित्तीय डेटा इनपुट'!$B$6:$I$30,$A11,F$6),NA()) -> 506842 | G11: =IFERROR(INDEX('वित्तीय डेटा इनपुट'!$B$6:$I$30,$A11,G$6),NA()) -> 554688 | H11: 9%
A12: =MATCH(B12,'वित्तीय डेटा इनपुट'!$B$6:$B$30,0) -> 3 | B12: =IF('मुख्य मैट्रिक सेटिंग्स'!C9="","",'मुख्य मैट्रिक सेटिंग्स'!C9) -> परिचालन लाभ | C12: =IFERROR(INDEX('वित्तीय डेटा इनपुट'!$B$6:$I$30,$A12,C$6),NA()) -> 6885769 | D12: =IFERROR(INDEX('वित्तीय डेटा इनपुट'!$B$6:$I$30,$A12,D$6),NA()) -> 7564325 | E12: =IFERROR(INDEX('वित्तीय डेटा इनपुट'!$B$6:$I$30,$A12,E$6),NA()) -> 7675526 | F12: =IFERROR(INDEX('वित्तीय डेटा इनपुट'!$B$6:$I$30,$A12,F$6),NA()) -> 7731783 | G12: =IFERROR(INDEX('वित्तीय डेटा इनपुट'!$B$6:$I$30,$A12,G$6),NA()) -> 7342599 | H12: -5%
B14: सभी मैट्रिक्स (25 मैट्रिक्स तक कार्य करता है)
A15: =ROWS($B$15:B15) -> 1 | B15: =IF('वित्तीय डेटा इनपुट'!B6=0,"",'वित्तीय डेटा इनपुट'!B6) -> आय | C15: =IF($B15="",NA(),IFERROR(INDEX('वित्तीय डेटा इनपुट'!$B$6:$I$30,$A15,C$6),NA())) -> 14272838 | D15: =IF($B15="",NA(),IFERROR(INDEX('वित्तीय डेटा इनपुट'!$B$6:$I$30,$A15,D$6),NA())) -> 15068746 | E15: =IF($B15="",NA(),IFERROR(INDEX('वित्तीय डेटा इनपुट'!$B$6:$I$30,$A15,E$6),NA())) -> 16504456 | F15: =IF($B15="",NA(),IFERROR(INDEX('वित्तीय डेटा इनपुट'!$B$6:$I$30,$A15,F$6),NA())) -> 18002663 | G15: =IF($B15="",NA(),IFERROR(INDEX('वित्तीय डेटा इनपुट'!$B$6:$I$30,$A15,G$6),NA())) -> 18058388
A16: =ROWS($B$15:B16) -> 2 | B16: =IF('वित्तीय डेटा इनपुट'!B7=0,"",'वित्तीय डेटा इनपुट'!B7) -> परिचालन व्यय | C16: =IF($B16="",NA(),IFERROR(INDEX('वित्तीय डेटा इनपुट'!$B$6:$I$30,$A16,C$6),NA())) -> 7592486 | D16: =IF($B16="",NA(),IFERROR(INDEX('वित्तीय डेटा इनपुट'!$B$6:$I$30,$A16,D$6),NA())) -> 7890127 | E16: =IF($B16="",NA(),IFERROR(INDEX('वित्तीय डेटा इनपुट'!$B$6:$I$30,$A16,E$6),NA())) -> 8167437 | F16: =IF($B16="",NA(),IFERROR(INDEX('वित्तीय डेटा इनपुट'!$B$6:$I$30,$A16,F$6),NA())) -> 8088333 | G16: =IF($B16="",NA(),IFERROR(INDEX('वित्तीय डेटा इनपुट'!$B$6:$I$30,$A16,G$6),NA())) -> 9441945
A17: =ROWS($B$15:B17) -> 3 | B17: =IF('वित्तीय डेटा इनपुट'!B8=0,"",'वित्तीय डेटा इनपुट'!B8) -> परिचालन लाभ | C17: =IF($B17="",NA(),IFERROR(INDEX('वित्तीय डेटा इनपुट'!$B$6:$I$30,$A17,C$6),NA())) -> 6885769 | D17: =IF($B17="",NA(),IFERROR(INDEX('वित्तीय डेटा इनपुट'!$B$6:$I$30,$A17,D$6),NA())) -> 7564325 | E17: =IF($B17="",NA(),IFERROR(INDEX('वित्तीय डेटा इनपुट'!$B$6:$I$30,$A17,E$6),NA())) -> 7675526 | F17: =IF($B17="",NA(),IFERROR(INDEX('वित्तीय डेटा इनपुट'!$B$6:$I$30,$A17,F$6),NA())) -> 7731783 | G17: =IF($B17="",NA(),IFERROR(INDEX('वित्तीय डेटा इनपुट'!$B$6:$I$30,$A17,G$6),NA())) -> 7342599
A18: =ROWS($B$15:B18) -> 4 | B18: =IF('वित्तीय डेटा इनपुट'!B9=0,"",'वित्तीय डेटा इनपुट'!B9) -> मूल्यह्रास | C18: =IF($B18="",NA(),IFERROR(INDEX('वित्तीय डेटा इनपुट'!$B$6:$I$30,$A18,C$6),NA())) -> 465692 | D18: =IF($B18="",NA(),IFERROR(INDEX('वित्तीय डेटा इनपुट'!$B$6:$I$30,$A18,D$6),NA())) -> 497421 | E18: =IF($B18="",NA(),IFERROR(INDEX('वित्तीय डेटा इनपुट'!$B$6:$I$30,$A18,E$6),NA())) -> 502411 | F18: =IF($B18="",NA(),IFERROR(INDEX('वित्तीय डेटा इनपुट'!$B$6:$I$30,$A18,F$6),NA())) -> 506842 | G18: =IF($B18="",NA(),IFERROR(INDEX('वित्तीय डेटा इनपुट'!$B$6:$I$30,$A18,G$6),NA())) -> 554688
A19: =ROWS($B$15:B19) -> 5 | B19: =IF('वित्तीय डेटा इनपुट'!B10=0,"",'वित्तीय डेटा इनपुट'!B10) -> ब्याज | C19: =IF($B19="",NA(),IFERROR(INDEX('वित्तीय डेटा इनपुट'!$B$6:$I$30,$A19,C$6),NA())) -> 289311 | D19: =IF($B19="",NA(),IFERROR(INDEX('वित्तीय डेटा इनपुट'!$B$6:$I$30,$A19,D$6),NA())) -> 313612 | E19: =IF($B19="",NA(),IFERROR(INDEX('वित्तीय डेटा इनपुट'!$B$6:$I$30,$A19,E$6),NA())) -> 314853 | F19: =IF($B19="",NA(),IFERROR(INDEX('वित्तीय डेटा इनपुट'!$B$6:$I$30,$A19,F$6),NA())) -> 333830 | G19: =IF($B19="",NA(),IFERROR(INDEX('वित्तीय डेटा इनपुट'!$B$6:$I$30,$A19,G$6),NA())) -> 378947
A20: =ROWS($B$15:B20) -> 6 | B20: =IF('वित्तीय डेटा इनपुट'!B11=0,"",'वित्तीय डेटा इनपुट'!B11) -> शुद्ध लाभ | C20: =IF($B20="",NA(),IFERROR(INDEX('वित्तीय डेटा इनपुट'!$B$6:$I$30,$A20,C$6),NA())) -> 5586081 | D20: =IF($B20="",NA(),IFERROR(INDEX('वित्तीय डेटा इनपुट'!$B$6:$I$30,$A20,D$6),NA())) -> 5974795 | E20: =IF($B20="",NA(),IFERROR(INDEX('वित्तीय डेटा इनपुट'!$B$6:$I$30,$A20,E$6),NA())) -> 6148359 | F20: =IF($B20="",NA(),IFERROR(INDEX('वित्तीय डेटा इनपुट'!$B$6:$I$30,$A20,F$6),NA())) -> 6627210 | G20: =IF($B20="",NA(),IFERROR(INDEX('वित्तीय डेटा इनपुट'!$B$6:$I$30,$A20,G$6),NA())) -> 6747485
A21: =ROWS($B$15:B21) -> 7 | B21: =IF('वित्तीय डेटा इनपुट'!B12=0,"",'वित्तीय डेटा इनपुट'!B12) -> कर | C21: =IF($B21="",NA(),IFERROR(INDEX('वित्तीय डेटा इनपुट'!$B$6:$I$30,$A21,C$6),NA())) -> 2557674 | D21: =IF($B21="",NA(),IFERROR(INDEX('वित्तीय डेटा इनपुट'!$B$6:$I$30,$A21,D$6),NA())) -> 2749886 | E21: =IF($B21="",NA(),IFERROR(INDEX('वित्तीय डेटा इनपुट'!$B$6:$I$30,$A21,E$6),NA())) -> 2833567 | F21: =IF($B21="",NA(),IFERROR(INDEX('वित्तीय डेटा इनपुट'!$B$6:$I$30,$A21,F$6),NA())) -> 2942453 | G21: =IF($B21="",NA(),IFERROR(INDEX('वित्तीय डेटा इनपुट'!$B$6:$I$30,$A21,G$6),NA())) -> 3140825
A22: =ROWS($B$15:B22) -> 8 | B22: =IF('वित्तीय डेटा इनपुट'!B13=0,"",'वित्तीय डेटा इनपुट'!B13) -> कर के बाद लाभ | C22: =IF($B22="",NA(),IFERROR(INDEX('वित्तीय डेटा इनपुट'!$B$6:$I$30,$A22,C$6),NA())) -> 3841853 | D22: =IF($B22="",NA(),IFERROR(INDEX('वित्तीय डेटा इनपुट'!$B$6:$I$30,$A22,D$6),NA())) -> 3989505 | E22: =IF($B22="",NA(),IFERROR(INDEX('वित्तीय डेटा इनपुट'!$B$6:$I$30,$A22,E$6),NA())) -> 4060773 | F22: =IF($B22="",NA(),IFERROR(INDEX('वित्तीय डेटा इनपुट'!$B$6:$I$30,$A22,F$6),NA())) -> 4243820 | G22: =IF($B22="",NA(),IFERROR(INDEX('वित्तीय डेटा इनपुट'!$B$6:$I$30,$A22,G$6),NA())) -> 5024768
A23: =ROWS($B$15:B23) -> 9 | B23: =IF('वित्तीय डेटा इनपुट'!B14=0,"",'वित्तीय डेटा इनपुट'!B14) -> मैट्रिक 1 | C23: =IF($B23="",NA(),IFERROR(INDEX('वित्तीय डेटा इनपुट'!$B$6:$I$30,$A23,C$6),NA())) -> 1378 | D23: =IF($B23="",NA(),IFERROR(INDEX('वित्तीय डेटा इनपुट'!$B$6:$I$30,$A23,D$6),NA())) -> 1429 | E23: =IF($B23="",NA(),IFERROR(INDEX('वित्तीय डेटा इनपुट'!$B$6:$I$30,$A23,E$6),NA())) -> 1557 | F23: =IF($B23="",NA(),IFERROR(INDEX('वित्तीय डेटा इनपुट'!$B$6:$I$30,$A23,F$6),NA())) -> 1678 | G23: =IF($B23="",NA(),IFERROR(INDEX('वित्तीय डेटा इनपुट'!$B$6:$I$30,$A23,G$6),NA())) -> 1996
A24: =ROWS($B$15:B24) -> 10 | B24: =IF('वित्तीय डेटा इनपुट'!B15=0,"",'वित्तीय डेटा इनपुट'!B15) -> मैट्रिक 2 | C24: =IF($B24="",NA(),IFERROR(INDEX('वित्तीय डेटा इनपुट'!$B$6:$I$30,$A24,C$6),NA())) -> 1922 | D24: =IF($B24="",NA(),IFERROR(INDEX('वित्तीय डेटा इनपुट'!$B$6:$I$30,$A24,D$6),NA())) -> 2017 | E24: =IF($B24="",NA(),IFERROR(INDEX('वित्तीय डेटा इनपुट'!$B$6:$I$30,$A24,E$6),NA())) -> 2048 | F24: =IF($B24="",NA(),IFERROR(INDEX('वित्तीय डेटा इनपुट'!$B$6:$I$30,$A24,F$6),NA())) -> 2184 | G24: =IF($B24="",NA(),IFERROR(INDEX('वित्तीय डेटा इनपुट'!$B$6:$I$30,$A24,G$6),NA())) -> 2601
A25: =ROWS($B$15:B25) -> 11 | B25: =IF('वित्तीय डेटा इनपुट'!B16=0,"",'वित्तीय डेटा इनपुट'!B16) -> मैट्रिक 3 | C25: =IF($B25="",NA(),IFERROR(INDEX('वित्तीय डेटा इनपुट'!$B$6:$I$30,$A25,C$6),NA())) -> 2187 | D25: =IF($B25="",NA(),IFERROR(INDEX('वित्तीय डेटा इनपुट'!$B$6:$I$30,$A25,D$6),NA())) -> 2319 | E25: =IF($B25="",NA(),IFERROR(INDEX('वित्तीय डेटा इनपुट'!$B$6:$I$30,$A25,E$6),NA())) -> 2467 | F25: =IF($B25="",NA(),IFERROR(INDEX('वित्तीय डेटा इनपुट'!$B$6:$I$30,$A25,F$6),NA())) -> 2639 | G25: =IF($B25="",NA(),IFERROR(INDEX('वित्तीय डेटा इनपुट'!$B$6:$I$30,$A25,G$6),NA())) -> 3108
A26: =ROWS($B$15:B26) -> 12 | B26: =IF('वित्तीय डेटा इनपुट'!B17=0,"",'वित्तीय डेटा इनपुट'!B17) -> मैट्रिक 4 | C26: =IF($B26="",NA(),IFERROR(INDEX('वित्तीय डेटा इनपुट'!$B$6:$I$30,$A26,C$6),NA())) -> 1259 | D26: =IF($B26="",NA(),IFERROR(INDEX('वित्तीय डेटा इनपुट'!$B$6:$I$30,$A26,D$6),NA())) -> 1370 | E26: =IF($B26="",NA(),IFERROR(INDEX('वित्तीय डेटा इनपुट'!$B$6:$I$30,$A26,E$6),NA())) -> 1376 | F26: =IF($B26="",NA(),IFERROR(INDEX('वित्तीय डेटा इनपुट'!$B$6:$I$30,$A26,F$6),NA())) -> 1459 | G26: =IF($B26="",NA(),IFERROR(INDEX('वित्तीय डेटा इनपुट'!$B$6:$I$30,$A26,G$6),NA())) -> 1492
A27: =ROWS($B$15:B27) -> 13 | B27: =IF('वित्तीय डेटा इनपुट'!B18=0,"",'वित्तीय डेटा इनपुट'!B18) -> मैट्रिक 5 | C27: =IF($B27="",NA(),IFERROR(INDEX('वित्तीय डेटा इनपुट'!$B$6:$I$30,$A27,C$6),NA())) -> 85 | D27: =IF($B27="",NA(),IFERROR(INDEX('वित्तीय डेटा इनपुट'!$B$6:$I$30,$A27,D$6),NA())) -> 89 | E27: =IF($B27="",NA(),IFERROR(INDEX('वित्तीय डेटा इनपुट'!$B$6:$I$30,$A27,E$6),NA())) -> 91 | F27: =IF($B27="",NA(),IFERROR(INDEX('वित्तीय डेटा इनपुट'!$B$6:$I$30,$A27,F$6),NA())) -> 100 | G27: =IF($B27="",NA(),IFERROR(INDEX('वित्तीय डेटा इनपुट'!$B$6:$I$30,$A27,G$6),NA())) -> 103
A28: =ROWS($B$15:B28) -> 14 | B28: =IF('वित्तीय डेटा इनपुट'!B19=0,"",'वित्तीय डेटा इनपुट'!B19) -> मैट्रिक 6 | C28: =IF($B28="",NA(),IFERROR(INDEX('वित्तीय डेटा इनपुट'!$B$6:$I$30,$A28,C$6),NA())) -> 27 | D28: =IF($B28="",NA(),IFERROR(INDEX('वित्तीय डेटा इनपुट'!$B$6:$I$30,$A28,D$6),NA())) -> 28 | E28: =IF($B28="",NA(),IFERROR(INDEX('वित्तीय डेटा इनपुट'!$B$6:$I$30,$A28,E$6),NA())) -> 29 | F28: =IF($B28="",NA(),IFERROR(INDEX('वित्तीय डेटा इनपुट'!$B$6:$I$30,$A28,F$6),NA())) -> 30 | G28: =IF($B28="",NA(),IFERROR(INDEX('वित्तीय डेटा इनपुट'!$B$6:$I$30,$A28,G$6),NA())) -> 34
A29: =ROWS($B$15:B29) -> 15 | B29: =IF('वित्तीय डेटा इनपुट'!B20=0,"",'वित्तीय डेटा इनपुट'!B20) ->  | C29: =IF(B29="",NA(),IFERROR(INDEX('वित्तीय डेटा इनपुट'!$B$6:$I$30,$A29,C$6),NA())) ->  | D29: =IF(B29="",NA(),IFERROR(INDEX('वित्तीय डेटा इनपुट'!$B$6:$I$30,$A29,D$6),NA())) ->  | E29: =IF(B29="",NA(),IFERROR(INDEX('वित्तीय डेटा इनपुट'!$B$6:$I$30,$A29,E$6),NA())) ->  | F29: =IF(B29="",NA(),IFERROR(INDEX('वित्तीय डेटा इनपुट'!$B$6:$I$30,$A29,F$6),NA())) ->  | G29: =IF(B29="",NA(),IFERROR(INDEX('वित्तीय डेटा इनपुट'!$B$6:$I$30,$A29,G$6),NA())) -> 
A30: =ROWS($B$15:B30) -> 16 | B30: =IF('वित्तीय डेटा इनपुट'!B21=0,"",'वित्तीय डेटा इनपुट'!B21) ->  | C30: =IF(B30="",NA(),IFERROR(INDEX('वित्तीय डेटा इनपुट'!$B$6:$I$30,$A30,C$6),NA())) ->  | D30: =IF(B30="",NA(),IFERROR(INDEX('वित्तीय डेटा इनपुट'!$B$6:$I$30,$A30,D$6),NA())) ->  | E30: =IF(B30="",NA(),IFERROR(INDEX('वित्तीय डेटा इनपुट'!$B$6:$I$30,$A30,E$6),NA())) ->  | F30: =IF(B30="",NA(),IFERROR(INDEX('वित्तीय डेटा इनपुट'!$B$6:$I$30,$A30,F$6),NA())) ->  | G30: =IF(B30="",NA(),IFERROR(INDEX('वित्तीय डेटा इनपुट'!$B$6:$I$30,$A30,G$6),NA())) -> 
A31: =ROWS($B$15:B31) -> 17 | B31: =IF('वित्तीय डेटा इनपुट'!B22=0,"",'वित्तीय डेटा इनपुट'!B22) ->  | C31: =IF(B31="",NA(),IFERROR(INDEX('वित्तीय डेटा इनपुट'!$B$6:$I$30,$A31,C$6),NA())) ->  | D31: =IF(B31="",NA(),IFERROR(INDEX('वित्तीय डेटा इनपुट'!$B$6:$I$30,$A31,D$6),NA())) ->  | E31: =IF(B31="",NA(),IFERROR(INDEX('वित्तीय डेटा इनपुट'!$B$6:$I$30,$A31,E$6),NA())) ->  | F31: =IF(B31="",NA(),IFERROR(INDEX('वित्तीय डेटा इनपुट'!$B$6:$I$30,$A31,F$6),NA())) ->  | G31: =IF(B31="",NA(),IFERROR(INDEX('वित्तीय डेटा इनपुट'!$B$6:$I$30,$A31,G$6),NA())) -> 
A32: =ROWS($B$15:B32) -> 18 | B32: =IF('वित्तीय डेटा इनपुट'!B23=0,"",'वित्तीय डेटा इनपुट'!B23) ->  | C32: =IF(B32="",NA(),IFERROR(INDEX('वित्तीय डेटा इनपुट'!$B$6:$I$30,$A32,C$6),NA())) ->  | D32: =IF(B32="",NA(),IFERROR(INDEX('वित्तीय डेटा इनपुट'!$B$6:$I$30,$A32,D$6),NA())) ->  | E32: =IF(B32="",NA(),IFERROR(INDEX('वित्तीय डेटा इनपुट'!$B$6:$I$30,$A32,E$6),NA())) ->  | F32: =IF(B32="",NA(),IFERROR(INDEX('वित्तीय डेटा इनपुट'!$B$6:$I$30,$A32,F$6),NA())) ->  | G32: =IF(B32="",NA(),IFERROR(INDEX('वित्तीय डेटा इनपुट'!$B$6:$I$30,$A32,G$6),NA())) -> 
A33: =ROWS($B$15:B33) -> 19 | B33: =IF('वित्तीय डेटा इनपुट'!B24=0,"",'वित्तीय डेटा इनपुट'!B24) ->  | C33: =IF(B33="",NA(),IFERROR(INDEX('वित्तीय डेटा इनपुट'!$B$6:$I$30,$A33,C$6),NA())) ->  | D33: =IF(B33="",NA(),IFERROR(INDEX('वित्तीय डेटा इनपुट'!$B$6:$I$30,$A33,D$6),NA())) ->  | E33: =IF(B33="",NA(),IFERROR(INDEX('वित्तीय डेटा इनपुट'!$B$6:$I$30,$A33,E$6),NA())) ->  | F33: =IF(B33="",NA(),IFERROR(INDEX('वित्तीय डेटा इनपुट'!$B$6:$I$30,$A33,F$6),NA())) ->  | G33: =IF(B33="",NA(),IFERROR(INDEX('वित्तीय डेटा इनपुट'!$B$6:$I$30,$A33,G$6),NA())) -> 
A34: =ROWS($B$15:B34) -> 20 | B34: =IF('वित्तीय डेटा इनपुट'!B25=0,"",'वित्तीय डेटा इनपुट'!B25) ->  | C34: =IF(B34="",NA(),IFERROR(INDEX('वित्तीय डेटा इनपुट'!$B$6:$I$30,$A34,C$6),NA())) ->  | D34: =IF(B34="",NA(),IFERROR(INDEX('वित्तीय डेटा इनपुट'!$B$6:$I$30,$A34,D$6),NA())) ->  | E34: =IF(B34="",NA(),IFERROR(INDEX('वित्तीय डेटा इनपुट'!$B$6:$I$30,$A34,E$6),NA())) ->  | F34: =IF(B34="",NA(),IFERROR(INDEX('वित्तीय डेटा इनपुट'!$B$6:$I$30,$A34,F$6),NA())) ->  | G34: =IF(B34="",NA(),IFERROR(INDEX('वित्तीय डेटा इनपुट'!$B$6:$I$30,$A34,G$6),NA())) -> 
A35: =ROWS($B$15:B35) -> 21 | B35: =IF('वित्तीय डेटा इनपुट'!B26=0,"",'वित्तीय डेटा इनपुट'!B26) ->  | C35: =IF(B35="",NA(),IFERROR(INDEX('वित्तीय डेटा इनपुट'!$B$6:$I$30,$A35,C$6),NA())) ->  | D35: =IF(B35="",NA(),IFERROR(INDEX('वित्तीय डेटा इनपुट'!$B$6:$I$30,$A35,D$6),NA())) ->  | E35: =IF(B35="",NA(),IFERROR(INDEX('वित्तीय डेटा इनपुट'!$B$6:$I$30,$A35,E$6),NA())) ->  | F35: =IF(B35="",NA(),IFERROR(INDEX('वित्तीय डेटा इनपुट'!$B$6:$I$30,$A35,F$6),NA())) ->  | G35: =IF(B35="",NA(),IFERROR(INDEX('वित्तीय डेटा इनपुट'!$B$6:$I$30,$A35,G$6),NA())) -> 
A36: =ROWS($B$15:B36) -> 22 | B36: =IF('वित्तीय डेटा इनपुट'!B27=0,"",'वित्तीय डेटा इनपुट'!B27) ->  | C36: =IF(B36="",NA(),IFERROR(INDEX('वित्तीय डेटा इनपुट'!$B$6:$I$30,$A36,C$6),NA())) ->  | D36: =IF(B36="",NA(),IFERROR(INDEX('वित्तीय डेटा इनपुट'!$B$6:$I$30,$A36,D$6),NA())) ->  | E36: =IF(B36="",NA(),IFERROR(INDEX('वित्तीय डेटा इनपुट'!$B$6:$I$30,$A36,E$6),NA())) ->  | F36: =IF(B36="",NA(),IFERROR(INDEX('वित्तीय डेटा इनपुट'!$B$6:$I$30,$A36,F$6),NA())) ->  | G36: =IF(B36="",NA(),IFERROR(INDEX('वित्तीय डेटा इनपुट'!$B$6:$I$30,$A36,G$6),NA())) -> 
A37: =ROWS($B$15:B37) -> 23 | B37: =IF('वित्तीय डेटा इनपुट'!B28=0,"",'वित्तीय डेटा इनपुट'!B28) ->  | C37: =IF(B37="",NA(),IFERROR(INDEX('वित्तीय डेटा इनपुट'!$B$6:$I$30,$A37,C$6),NA())) ->  | D37: =IF(B37="",NA(),IFERROR(INDEX('वित्तीय डेटा इनपुट'!$B$6:$I$30,$A37,D$6),NA())) ->  | E37: =IF(B37="",NA(),IFERROR(INDEX('वित्तीय डेटा इनपुट'!$B$6:$I$30,$A37,E$6),NA())) ->  | F37: =IF(B37="",NA(),IFERROR(INDEX('वित्तीय डेटा इनपुट'!$B$6:$I$30,$A37,F$6),NA())) ->  | G37: =IF(B37="",NA(),IFERROR(INDEX('वित्तीय डेटा इनपुट'!$B$6:$I$30,$A37,G$6),NA())) -> 
A38: =ROWS($B$15:B38) -> 24 | B38: =IF('वित्तीय डेटा इनपुट'!B29=0,"",'वित्तीय डेटा इनपुट'!B29) ->  | C38: =IF(B38="",NA(),IFERROR(INDEX('वित्तीय डेटा इनपुट'!$B$6:$I$30,$A38,C$6),NA())) ->  | D38: =IF(B38="",NA(),IFERROR(INDEX('वित्तीय डेटा इनपुट'!$B$6:$I$30,$A38,D$6),NA())) ->  | E38: =IF(B38="",NA(),IFERROR(INDEX('वित्तीय डेटा इनपुट'!$B$6:$I$30,$A38,E$6),NA())) ->  | F38: =IF(B38="",NA(),IFERROR(INDEX('वित्तीय डेटा इनपुट'!$B$6:$I$30,$A38,F$6),NA())) ->  | G38: =IF(B38="",NA(),IFERROR(INDEX('वित्तीय डेटा इनपुट'!$B$6:$I$30,$A38,G$6),NA())) -> 
A39: =ROWS($B$15:B39) -> 25 | B39: =IF('वित्तीय डेटा इनपुट'!B30=0,"",'वित्तीय डेटा इनपुट'!B30) ->  | C39: =IF(B39="",NA(),IFERROR(INDEX('वित्तीय डेटा इनपुट'!$B$6:$I$30,$A39,C$6),NA())) ->  | D39: =IF(B39="",NA(),IFERROR(INDEX('वित्तीय डेटा इनपुट'!$B$6:$I$30,$A39,D$6),NA())) ->  | E39: =IF(B39="",NA(),IFERROR(INDEX('वित्तीय डेटा इनपुट'!$B$6:$I$30,$A39,E$6),NA())) ->  | F39: =IF(B39="",NA(),IFERROR(INDEX('वित्तीय डेटा इनपुट'!$B$6:$I$30,$A39,F$6),NA())) ->  | G39: =IF(B39="",NA(),IFERROR(INDEX('वित्तीय डेटा इनपुट'!$B$6:$I$30,$A39,G$6),NA())) -> 
